{"text_format":"1","workbook":"xlsx","n_sheets":1,"sheets":["Blad1"],"not_rendered":{"charts":1,"images":6,"macros":1,"external_links":0,"defined_names":0,"comments":0,"pivot_tables":0},"unopened":[],"bounds":{"document_bytes":16777216,"sheet_cells":100000,"rows_first":2000,"rows_last":500,"rows_between":2000,"halvings":0,"cell_chars":16384,"cell_head_chars":4096},"cells_cut":0,"cells_raw":0,"read":"whole","date_system":"1900"}

{"sheet":"Blad1","index":0,"n_rows":25,"n_cols":25,"rows_kept":25,"cut":false,"hidden":false,"merged":[]}
[null,null,null,null,null,null,null,null,null,"Trial","ReactieTijd",null,null,"Serie","Gemid-","Standaard",null,null,"Vorige series","Level 1","Level 2","start =",0]
[null,null,null,null,null,null,null,null,null,"nummer","(ms)",null,null,"nummer","delde","Deviatie",null,null,"gemidd =",{"$f":"IF(IFERROR(AVERAGE(T4:T130),-1)=-1,\"\",AVERAGE(T4:T130))","v":""},{"$f":"IF(IFERROR(AVERAGE(U4:U135),-1)=-1,\"\",AVERAGE(U4:U135))","v":""},"step =",50]
[null,null,null,null,null,null,null,null,null,null,null,null,null,null,null,null,null,null,"stdev =",{"$f":"IF(IFERROR(STDEV(T4:T130),-1)=-1,\"\",STDEV(T4:T130))","v":""},{"$f":"IF(IFERROR(STDEV(U4:U135),-1)=-1,\"\",STDEV(U4:U135))","v":""},"stop ="]
[null,null,null,null,null,null,null,null,null,null,null,null,null,null,null,null,null,null,null,null,null,{"$f":"$W$1","v":0},{"$f":"V4+$W$2/2","v":25},{"$f":"FREQUENCY(T4:T549,W4:W24)","v":0},{"$f":"FREQUENCY(U4:U520,W4:W24)","v":0}]
[null,null,null,null,null,null,null,null,null,null,null,null,null,null,null,null,null,null,null,null,null,{"$f":"V4+$W$2","v":50},{"$f":"V5+$W$2/2","v":75},0,0]
[null,null,null,null,null,null,null,null,null,null,null,null,null,null,null,null,null,null,null,null,null,{"$f":"V5+$W$2","v":100},{"$f":"V6+$W$2/2","v":125},0,0]
[null,null,null,null,null,null,null,null,null,null,null,null,null,null,null,null,null,null,null,null,null,150,175,0,0]
[null,null,null,null,null,null,null,null,null,null,null,null,null,null,null,null,null,null,null,null,null,200,225,0,0]
[null,null,null,null,null,null,null,null,null,null,null,null,null,null,null,null,null,null,null,null,null,250,275,0,0]
[null,null,null,null,null,null,null,null,null,null,null,null,null,null,null,null,null,null,null,null,null,300,325,0,0]
[null,null,null,null,null,null,null,null,null,null,null,null,null,null,null,null,null,null,null,null,null,350,375,0,0]
[null,null,null,null,null,null,null,null,null,null,null,null,null,null,null,null,null,null,null,null,null,400,425,0,0]
[null,null,null,null,null,null,null,null,null,null,null,null,null,null,null,null,null,null,null,null,null,450,475,0,0]
[null,null,null,null,null,null,null,null,null,null,null,null,null,null,null,null,null,null,null,null,null,500,525,0,0]
[null,null,null,null,null,null,null,null,null,null,null,null,null,null,null,null,null,null,null,null,null,550,575,0,0]
[null,null,null,null,null,null,null,null,null,null,null,null,null,null,null,null,null,null,null,null,null,600,625,0,0]
[null,null,null,null,null,null,null,null,null,null,null,null,null,null,null,null,null,null,null,null,null,650,675,0,0]
[null,null,null,null,null,null,null,null,null,null,null,null,null,null,null,null,null,null,null,null,null,700,725,0,0]
[null,null,null,null,null,null,null,null,null,null,null,null,null,null,null,null,null,null,null,null,null,750,775,0,0]
[null,null,null,null,null,null,null,null,null,null,null,null,null,null,null,null,null,null,null,null,null,800,825,0,0]
[null,null,null,null,null,null,null,null,null,null,null,null,null,null,null,null,null,null,null,null,null,850,875,0,0]
[null,null,null,null,null,null,null,null,null,null,null,null,null,null,null,null,null,null,null,null,null,900,925,0,0]
[null,null,null,null,null,null,null,null,null,null,null,null,null,null,null,null,null,null,null,null,null,950,975,0,0]
[null,null,null,null,null,null,null,null,null,null,null,null,null,null,null,null,null,null,null,null,null,1000,1025,0,0]
[null,null,null,null,null,null,null,null,null,null,null,null,null,null,null,null,null,null,null,null,null,null,null,0,0]